fUST/lending_fUST_20250602
["ID","MTS","AMOUNT","RATE_DAILY","PERIOD"]
[363755759,1748862633687,-430.0,0.00016596,2]
[363755760,1748862633698,-430.0,0.00016596,2]
[363755761,1748862633709,-530.0,0.00016596,2]
[363755762,1748862633720,-1544.94,0.00016596,2]
[363755763,1748862633732,-430.0,0.00016596,2]
[363755764,1748862633743,-430.0,0.00016596,2]
[363755765,1748862633754,-430.0,0.00016596,2]
[363755766,1748862633765,-430.0,0.00016596,2]
[363755767,1748862633778,-430.0,0.00016596,2]
[363755768,1748862633789,-430.0,0.00016596,2]
[363755769,1748862633799,-412.67219053,0.00016596,2]
[363755770,1748862633810,-430.0,0.00016596,2]
[363755771,1748862633831,-430.0,0.00016596,2]
[363755772,1748862633842,-430.0,0.00016596,2]
[363755773,1748862633853,-430.0,0.00016596,2]
[363755774,1748862633863,-640.0,0.00016596,2]
[363755775,1748862633874,-430.0,0.00016596,2]
[363755776,1748862633884,-430.0,0.00016596,2]
[363755777,1748862633895,-430.0,0.00016596,2]
[363755778,1748862633905,-430.0,0.00016596,2]
[363755779,1748862633917,-1935.25,0.00016596,2]
[363755780,1748862633928,-529.27,0.00016596,2]
[363755781,1748862633939,-430.0,0.00016596,2]
[363755782,1748862633950,-430.0,0.00016596,2]
[363755783,1748862633961,-430.0,0.00016596,2]
[363755784,1748862633971,-430.0,0.00016596,2]
[363755785,1748862633982,-430.0,0.00016596,2]
[363755786,1748862633993,-572.58106463,0.00016596,2]
[363755787,1748862634003,-430.0,0.00016596,2]
[363755788,1748862634013,-785.27,0.00016596,2]
[363755789,1748862634024,-430.0,0.00016596,2]
[363755790,1748862634037,-430.0,0.00016596,2]
[363755791,1748862634046,-560.31747311,0.00016596,2]
[363755792,1748862634056,-430.0,0.00016596,2]
[363755793,1748862634067,-430.0,0.00016596,2]
[363755794,1748862634078,-400.0,0.00016596,2]
[363755795,1748862634089,-430.0,0.00016596,2]
[363755796,1748862634099,-430.0,0.00016596,2]
[363755797,1748862634109,-430.0,0.00016596,2]
[363755798,1748862634121,-430.0,0.00016596,2]
[363755799,1748862634132,-420.0,0.00016596,2]
[363755800,1748862634143,-450.0,0.00016596,2]
[363755801,1748862634154,-430.0,0.00016596,2]
[363755802,1748862634165,-430.0,0.00016596,2]
[363755803,1748862634175,-450.0,0.00016596,2]
[363755804,1748862634185,-491.19,0.00016596,2]
[363755805,1748862634195,-430.0,0.00016596,2]
[363755806,1748862634205,-370.0,0.00016596,2]
[363755807,1748862634216,-430.0,0.00016596,2]
[363755808,1748862634226,-430.0,0.00016596,2]
[363755809,1748862634237,-471.21767494,0.00016596,2]
[363755810,1748862634247,-430.0,0.00016596,2]
[363755811,1748862634258,-430.0,0.00016596,2]
[363755812,1748862634269,-430.0,0.00016596,2]
[363755813,1748862634281,-430.0,0.00016596,2]
[363755814,1748862634295,-463.45732558,0.00016596,2]
[363755815,1748862634305,-623.12,0.00016596,2]
[363755816,1748862634315,-430.0,0.00016596,2]
[363755817,1748862634326,-430.0,0.00016596,2]
[363755818,1748862634335,-430.0,0.00016596,2]
[363755819,1748862634345,-430.0,0.00016596,2]
[363755820,1748862634354,-437.10351022,0.00016596,2]
[363755821,1748862634364,-530.42,0.00016596,2]
[363755822,1748862634373,-430.0,0.00016596,2]
[363755823,1748862634383,-430.0,0.00016596,2]
[363755824,1748862634391,-430.0,0.00016596,2]
[363755825,1748862634400,-804.11,0.00016596,2]
[363755826,1748862634409,-430.0,0.00016596,2]
[363755827,1748862634419,-430.0,0.00016596,2]
[363755828,1748862634429,-430.0,0.00016596,2]
[363755829,1748862634439,-430.0,0.00016596,2]
[363755830,1748862634448,-430.0,0.00016596,2]
[363755831,1748862634457,-430.0,0.00016596,2]
[363755832,1748862634467,-430.0,0.00016596,2]
[363755833,1748862634476,-460.0,0.00016596,2]
[363755834,1748862634486,-430.0,0.00016597,2]
[363755835,1748862634495,-430.0,0.00016597,2]
[363755836,1748862634503,-430.0,0.00016597,2]
[363755837,1748862634511,-430.0,0.00016597,2]
[363755838,1748862634519,-430.0,0.00016597,2]
[363755839,1748862634527,-430.0,0.00016597,2]
[363755840,1748862634537,-430.0,0.00016597,2]
[363755841,1748862634544,-430.0,0.00016597,2]
[363755842,1748862634553,-430.0,0.00016597,2]
[363755843,1748862634560,-430.0,0.00016597,2]
[363755844,1748862634568,-430.0,0.00016597,2]
[363755845,1748862634578,-430.0,0.00016597,2]
[363755846,1748862634586,-440.69313988,0.00016597,2]
[363755847,1748862634593,-4084.03,0.00016597,2]
[363755848,1748862634601,-430.0,0.00016597,2]
[363755849,1748862634611,-728.04,0.00016597,2]
[363755850,1748862634619,-430.0,0.00016597,2]
[363755851,1748862634627,-430.0,0.00016598,2]
[363755852,1748862634635,-430.0,0.00016598,2]
[363755853,1748862634644,-500.0,0.00016598,2]
[363755854,1748862634651,-430.0,0.00016598,2]
[363755855,1748862634660,-430.0,0.00016598,2]
[363755856,1748862634669,-430.0,0.00016598,2]
[363755857,1748862634678,-430.0,0.00016598,2]
[363755858,1748862634687,-430.0,0.00016598,2]
[363755859,1748862634695,-451.57301229,0.00016598,2]
[363755860,1748862634704,-430.0,0.00016598,2]
[363755861,1748862634712,-510.0,0.00016598,2]
[363755862,1748862634720,-430.0,0.00016598,2]
[363755863,1748862634728,-314.6727995,0.00016598,2]
[363755864,1748862634735,-430.0,0.00016598,2]
[363755865,1748862634742,-430.0,0.00016598,2]
[363755866,1748862634750,-430.0,0.00016868,2]
[363755867,1748862634758,-430.0,0.00016868,2]
[363755868,1748862634766,-807.56,0.00016868,2]
[363755869,1748862634774,-430.0,0.00016868,2]
[363755870,1748862634782,-430.0,0.00016868,2]
[363755871,1748862634915,-1621.71,0.00016868,2]
[363755872,1748862634926,-3115.92,0.00016868,2]
[363755873,1748862634936,-430.0,0.00016868,2]
[363755874,1748862634946,-430.0,0.00016868,2]
[363755875,1748862634956,-430.0,0.00016868,2]
[363755876,1748862634966,-430.0,0.00016868,2]
[363755877,1748862634976,-1471.37,0.00016868,2]
[363755878,1748862634986,-2277.84,0.00016868,2]
[363755879,1748862634996,-1394.22,0.00016869,2]
[363755880,1748862635006,-573.88,0.00016869,2]
[363755881,1748862635016,-430.0,0.00016869,2]
[363755882,1748862635026,-430.0,0.00016869,2]
[363755883,1748862635036,-430.0,0.00016869,2]
[363755884,1748862635046,-720.83,0.00016869,2]
[363755885,1748862635056,-430.0,0.00016869,2]
[363755886,1748862635066,-430.0,0.00016869,2]
[363755887,1748862635076,-430.0,0.00016869,2]
[363755888,1748862635085,-430.0,0.00016869,2]
[363755889,1748862635095,-185.57375839,0.00016869,2]
[363755890,1748862635105,-430.0,0.00016869,2]
[363755891,1748862635114,-430.0,0.00016869,2]
[363755892,1748862635124,-1127.52,0.00016869,2]
[363755893,1748862635134,-430.0,0.00016869,2]
[363755894,1748862635143,-430.0,0.00016869,2]
[363755895,1748862635153,-430.0,0.00016869,2]
[363755896,1748862635163,-430.0,0.00016869,2]
[363755897,1748862635172,-430.0,0.00016869,2]
[363755898,1748862635181,-470.0,0.0001687,2]
[363755899,1748862635191,-430.0,0.0001687,2]
[363755900,1748862635201,-430.0,0.0001687,2]
[363755901,1748862635211,-430.0,0.0001687,2]
[363755902,1748862635219,-430.0,0.0001687,2]
[363755903,1748862635229,-430.0,0.0001687,2]
[363755904,1748862635239,-430.0,0.0001687,2]
[363755905,1748862635249,-558.16242851,0.0001687,2]
[363755906,1748862635259,-430.0,0.0001687,2]
[363755907,1748862635268,-430.0,0.0001687,2]
[363755908,1748862635280,-430.0,0.0001687,2]
[363755909,1748862635290,-430.0,0.0001687,2]
[363755910,1748862635300,-282.20404482,0.0001687,2]
[363755911,1748862635310,-430.0,0.0001687,2]
[363755912,1748862635319,-430.0,0.0001687,2]
[363755913,1748862635329,-430.0,0.0001687,2]
[363755914,1748862635339,-430.0,0.0001687,2]
[363755915,1748862635349,-430.0,0.0001687,2]
[363755916,1748862635360,-430.0,0.0001687,2]
[363755917,1748862635370,-460.08952511,0.0001687,2]
[363755918,1748862635380,-430.0,0.0001687,2]
[363755919,1748862635390,-248.88522453,0.0001687,2]
[363755920,1748862635400,-430.0,0.0001687,2]
[363755921,1748862635409,-423.86641696,0.0001687,2]
[363755922,1748862635419,-430.0,0.0001687,2]
[363755923,1748862635429,-430.0,0.0001687,2]
[363755924,1748862635439,-430.0,0.0001687,2]
[363755925,1748862635449,-430.0,0.0001687,2]
[363755926,1748862635458,-430.0,0.0001687,2]
[363755927,1748862635468,-496.96871785,0.0001687,2]
[363755928,1748862635478,-430.0,0.0001687,2]
[363755929,1748862635487,-430.0,0.0001687,2]
[363755930,1748862635497,-453.33,0.0001687,2]
[363755931,1748862635507,-430.0,0.0001687,2]
[363755932,1748862635517,-430.0,0.0001687,2]
[363755933,1748862635529,-430.0,0.0001687,2]
[363755934,1748862635539,-430.0,0.0001687,2]
[363755935,1748862635548,-1544.94,0.0001687,2]
[363755936,1748862635557,-430.0,0.0001687,2]
[363755937,1748862635567,-430.0,0.0001687,2]
[363755938,1748862635577,-430.0,0.0001687,2]
[363755939,1748862635587,-430.0,0.0001687,2]
[363755940,1748862635597,-430.0,0.0001687,2]
[363755941,1748862635607,-430.0,0.0001687,2]
[363755942,1748862635617,-640.0,0.0001687,2]
[363755943,1748862635627,-430.0,0.0001687,2]
[363755944,1748862635637,-430.0,0.0001687,2]
[363755945,1748862635647,-430.0,0.0001687,2]
[363755946,1748862635657,-1935.25,0.0001687,2]
[363755947,1748862635667,-529.27,0.0001687,2]
[363755948,1748862635677,-430.0,0.0001687,2]
[363755949,1748862635686,-430.0,0.0001687,2]
[363755950,1748862635697,-430.0,0.0001687,2]
[363755951,1748862635707,-430.0,0.0001687,2]
[363755952,1748862635716,-785.27,0.0001687,2]
[363755953,1748862635726,-430.0,0.0001687,2]
[363755954,1748862635736,-507.56,0.0001687,2]
[363755955,1748862635745,-430.0,0.0001687,2]
[363755956,1748862635755,-430.0,0.0001687,2]
[363755957,1748862635765,-430.0,0.0001687,2]
[363755958,1748862635776,-535.7,0.0001687,2]
[363755959,1748862635786,-430.0,0.0001687,2]
[363755960,1748862635795,-430.0,0.0001687,2]
[363755961,1748862635805,-430.0,0.0001687,2]
[363755962,1748862635815,-430.0,0.0001687,2]
[363755963,1748862635825,-623.12,0.0001687,2]
[363755964,1748862635837,-430.0,0.0001687,2]
[363755965,1748862635847,-430.0,0.0001687,2]
[363755966,1748862635857,-530.42,0.0001687,2]
[363755967,1748862635867,-430.0,0.0001687,2]
[363755968,1748862635878,-430.0,0.0001687,2]
[363755969,1748862635888,-430.0,0.0001687,2]
[363755970,1748862635898,-804.11,0.0001687,2]
[363755971,1748862635907,-430.0,0.0001687,2]
[363755972,1748862635915,-170.70859069,0.0001687,2]
[363755973,1748862635923,-430.0,0.0001687,2]
[363755974,1748862635933,-430.0,0.0001687,2]
[363755975,1748862635942,-430.0,0.00016871,2]
[363755976,1748862635952,-481.445303,0.00016871,2]
[363755977,1748862635962,-430.0,0.00016871,2]
[363755978,1748862635971,-430.0,0.00016871,2]
[363755979,1748862635981,-430.0,0.00016871,2]
[363755980,1748862635991,-4084.03,0.00016871,2]
[363755981,1748862636000,-430.0,0.00016871,2]
[363755982,1748862636010,-728.04,0.00016871,2]
[363755983,1748862636019,-430.0,0.00016871,2]
[363755984,1748862636030,-430.0,0.00016872,2]
[363755985,1748862636039,-230.87983874,0.00016872,2]
[363755986,1748862636049,-430.0,0.00016872,2]
[363755987,1748862636059,-430.0,0.00016872,2]
[363755988,1748862636068,-430.0,0.00016872,2]
[363755989,1748862636078,-430.0,0.00016872,2]
[363755990,1748862636087,-430.0,0.00016872,2]
[363755991,1748862636097,-150.56790626,0.00017044,2]
[363755992,1748862636107,-197.60489481,0.00017142,2]
[363755993,1748862636117,-807.56,0.00017142,2]
[363755994,1748862636127,-430.0,0.00017142,2]
[363755995,1748862636136,-1621.71,0.00017142,2]
[363755996,1748862636146,-3115.92,0.00017142,2]
[363755997,1748862636156,-430.0,0.00017142,2]
[363755998,1748862636166,-430.0,0.00017142,2]
[363755999,1748862636175,-430.0,0.00017142,2]
[363756000,1748862636184,-1471.37,0.00017142,2]
[363756001,1748862636194,-2277.84,0.00017142,2]
[363756002,1748862636205,-1394.22,0.00017143,2]
[363756003,1748862636215,-573.88,0.00017143,2]
[363756004,1748862636224,-430.0,0.00017143,2]
[363756005,1748862636235,-430.0,0.00017143,2]
[363756006,1748862636245,-430.0,0.00017143,2]
[363756007,1748862636255,-720.83,0.00017143,2]
[363756008,1748862636267,-430.0,0.00017143,2]
[363756009,1748862636278,-430.0,0.00017143,2]
[363756010,1748862636288,-430.0,0.00017143,2]
[363756011,1748862636298,-430.0,0.00017143,2]
[363756012,1748862636307,-430.0,0.00017143,2]
[363756013,1748862636316,-1127.52,0.00017143,2]
[363756014,1748862636325,-430.0,0.00017143,2]
[363756015,1748862636333,-430.0,0.00017143,2]
[363756016,1748862636341,-430.0,0.00017143,2]
[363756017,1748862636350,-430.0,0.00017143,2]
[363756018,1748862636358,-430.0,0.00017143,2]
[363756019,1748862636367,-430.0,0.00017144,2]
[363756020,1748862636375,-430.0,0.00017144,2]
[363756021,1748862636384,-430.0,0.00017144,2]
[363756022,1748862636393,-430.0,0.00017144,2]
[363756023,1748862636403,-430.0,0.00017144,2]
[363756024,1748862636412,-430.0,0.00017144,2]
[363756025,1748862636422,-430.0,0.00017144,2]
[363756026,1748862636431,-430.0,0.00017144,2]
[363756027,1748862636440,-430.0,0.00017144,2]
[363756028,1748862636450,-430.0,0.00017144,2]
[363756029,1748862636460,-430.0,0.00017144,2]
[363756030,1748862636469,-231.4395295,0.00017144,2]
[363756031,1748862636479,-430.0,0.00017144,2]
[363756032,1748862636488,-430.0,0.00017144,2]
[363756033,1748862636497,-430.0,0.00017144,2]
[363756034,1748862636508,-430.0,0.00017144,2]
[363756035,1748862636517,-1544.94,0.00017144,2]
[363756036,1748862636526,-430.0,0.00017144,2]
[363756037,1748862636535,-430.0,0.00017144,2]
[363756038,1748862636544,-430.0,0.00017144,2]
[363756039,1748862636554,-430.0,0.00017144,2]
[363756040,1748862636566,-640.0,0.00017144,2]
[363756041,1748862636576,-430.0,0.00017144,2]
[363756042,1748862636586,-430.0,0.00017144,2]
[363756043,1748862636596,-430.0,0.00017144,2]
[363756044,1748862636605,-1935.25,0.00017144,2]
[363756045,1748862636615,-529.27,0.00017144,2]
[363756046,1748862636625,-430.0,0.00017144,2]
[363756047,1748862636635,-430.0,0.00017144,2]
[363756048,1748862636644,-430.0,0.00017144,2]
[363756049,1748862636654,-430.0,0.00017144,2]
[363756050,1748862636663,-785.27,0.00017144,2]
[363756051,1748862636673,-430.0,0.00017144,2]
[363756052,1748862636683,-430.0,0.00017144,2]
[363756053,1748862636692,-430.0,0.00017144,2]
[363756054,1748862636702,-430.0,0.00017144,2]
[363756055,1748862636711,-430.0,0.00017144,2]
[363756056,1748862636721,-483.81,0.00017144,2]
[363756057,1748862636732,-623.12,0.00017144,2]
[363756058,1748862636741,-430.0,0.00017144,2]
[363756059,1748862636751,-530.42,0.00017144,2]
[363756060,1748862636761,-430.0,0.00017144,2]
[363756061,1748862636770,-804.11,0.00017144,2]
[363756062,1748862636781,-535.22800191,0.00017144,2]
[363756063,1748862636791,-430.0,0.00017144,2]
[363756064,1748862636801,-430.0,0.00017145,2]
[363756065,1748862636811,-4084.03,0.00017145,2]
[363756066,1748862636821,-728.04,0.00017145,2]
[363756067,1748862636832,-430.0,0.00017145,2]
[363756068,1748862636842,-410.43989339,0.00017146,2]
[363756069,1748862636851,-430.0,0.00017146,2]
[363756070,1748862636862,-430.0,0.00017146,2]
[363756071,1748862636871,-500.0,0.00017161,2]
[363756072,1748862636881,-500.0,0.00017175,2]
[363756073,1748862636890,-500.0,0.00017175,2]
[363756074,1748862636900,-500.0,0.00017187,2]
[363756075,1748862636910,-616.5514504,0.00017187,2]
[363756076,1748862636920,-508.96957895,0.00017187,2]
[363756077,1748862636929,-500.0,0.00017187,2]
[363756078,1748862636939,-500.0,0.00017187,2]
[363756079,1748862636948,-500.0,0.0001719,2]
[363756080,1748862636957,-638.62684712,0.0001719,2]
[363756081,1748862636967,-500.0,0.0001719,2]
[363756082,1748862636976,-501.18617219,0.0001719,2]
[363756083,1748862636986,-500.0,0.00017194,2]
[363756084,1748862636995,-500.0,0.00017213,2]
[363756085,1748862637004,-500.0,0.00017224,2]
[363756086,1748862637014,-160.22512546,0.00017311,2]
[363756087,1748862637024,-501.32231701,0.00017371,2]
[363756088,1748862637033,-807.56,0.00017416,2]
[363756089,1748862637043,-430.0,0.00017416,2]
[363756090,1748862637052,-1621.71,0.00017416,2]
[363756091,1748862637062,-3115.92,0.00017416,2]
[363756092,1748862637071,-430.0,0.00017416,2]
[363756093,1748862637082,-430.0,0.00017416,2]
[363756094,1748862637091,-1471.37,0.00017416,2]
[363756095,1748862637101,-2277.84,0.00017416,2]
[363756096,1748862637110,-1394.22,0.00017417,2]
[363756097,1748862637120,-573.88,0.00017417,2]
[363756098,1748862637130,-430.0,0.00017417,2]
[363756099,1748862637141,-430.0,0.00017417,2]
[363756100,1748862637151,-430.0,0.00017417,2]
[363756101,1748862637160,-720.83,0.00017417,2]
[363756102,1748862637170,-430.0,0.00017417,2]
[363756103,1748862637179,-430.0,0.00017417,2]
[363756104,1748862637188,-430.0,0.00017417,2]
[363756105,1748862637198,-1127.52,0.00017417,2]
[363756106,1748862637207,-430.0,0.00017417,2]
[363756107,1748862637217,-430.0,0.00017417,2]
[363756108,1748862637226,-430.0,0.00017417,2]
[363756109,1748862637235,-315.06,0.00017417,2]
[363756110,1748862637244,-430.0,0.00017418,2]
[363756111,1748862637353,-482.78447293,0.00017418,2]
[363756112,1748862637363,-205.13,0.00017418,2]
[363756113,1748862637373,-430.0,0.00017418,2]
[363756114,1748862637383,-430.0,0.00017418,2]
[363756115,1748862637395,-430.0,0.00017418,2]
[363756116,1748862637405,-200.08686581,0.00017418,2]
[363756117,1748862637414,-430.0,0.00017418,2]
[363756118,1748862637425,-562.31711347,0.00017418,2]
[363756119,1748862637435,-430.0,0.00017418,2]
[363756120,1748862637444,-1544.94,0.00017418,2]
[363756121,1748862637454,-430.0,0.00017418,2]
[363756122,1748862637463,-430.0,0.00017418,2]
[363756123,1748862637473,-267.5555863,0.00017418,2]
[363756124,1748862637483,-640.0,0.00017418,2]
[363756125,1748862637492,-430.0,0.00017418,2]
[363756126,1748862637503,-430.0,0.00017418,2]
[363756127,1748862637514,-1935.25,0.00017418,2]
[363756128,1748862637523,-529.27,0.00017418,2]
[363756129,1748862637533,-430.0,0.00017418,2]
[363756130,1748862637541,-785.27,0.00017418,2]
[363756131,1748862637550,-430.0,0.00017418,2]
[363756132,1748862637559,-430.0,0.00017418,2]
[363756133,1748862637570,-430.0,0.00017418,2]
[363756134,1748862637580,-430.0,0.00017418,2]
[363756135,1748862637589,-430.0,0.00017418,2]
[363756136,1748862637599,-623.12,0.00017418,2]
[363756137,1748862637608,-166.46303397,0.00017418,2]
[363756138,1748862637618,-530.42,0.00017418,2]
[363756139,1748862637627,-430.0,0.00017418,2]
[363756140,1748862637637,-804.11,0.00017418,2]
[363756141,1748862637647,-430.0,0.00017418,2]
[363756142,1748862637656,-430.0,0.00017419,2]
[363756143,1748862637666,-4084.03,0.00017419,2]
[363756144,1748862637676,-728.04,0.00017419,2]
[363756145,1748862637686,-430.0,0.00017419,2]
[363756146,1748862637695,-151.0,0.00017613,2]
[363756147,1748862637705,-151.0,0.00017613,2]
[363756148,1748862637715,-151.0,0.0001764,2]
[363756149,1748862637724,-151.0,0.0001764,2]
[363756150,1748862637734,-198.0,0.00017668,2]
[363756151,1748862637743,-198.0,0.00017668,2]
[363756152,1748862637753,-807.56,0.0001769,2]
[363756153,1748862637763,-430.0,0.0001769,2]
[363756154,1748862637773,-1621.71,0.0001769,2]
[363756155,1748862637785,-3115.92,0.0001769,2]
[363756156,1748862637795,-430.0,0.0001769,2]
[363756157,1748862637805,-430.0,0.0001769,2]
[363756158,1748862637815,-1471.37,0.0001769,2]
[363756159,1748862637826,-2277.84,0.0001769,2]
[363756160,1748862637838,-1394.22,0.00017691,2]
[363756161,1748862637847,-573.88,0.00017691,2]
[363756162,1748862637858,-430.0,0.00017691,2]
[363756163,1748862637869,-430.0,0.00017691,2]
[363756164,1748862637878,-430.0,0.00017691,2]
[363756165,1748862637888,-720.83,0.00017691,2]
[363756166,1748862637897,-430.0,0.00017691,2]
[363756168,1748862637909,-430.0,0.00017691,2]
[363756170,1748862637920,-463.08068349,0.00017691,2]
[363756172,1748862637930,-1127.52,0.00017691,2]
[363756174,1748862637940,-376.98025834,0.00017691,2]
[363756176,1748862637949,-430.0,0.00017691,2]
[363756178,1748862637959,-430.0,0.00017691,2]
[363756180,1748862637968,-430.0,0.00017692,2]
[363756181,1748862637978,-430.0,0.00017692,2]
[363756182,1748862637988,-430.0,0.00017692,2]
[363756183,1748862637998,-430.0,0.00017692,2]
[363756184,1748862638008,-1544.94,0.00017692,2]
[363756185,1748862638018,-430.0,0.00017692,2]
[363756186,1748862638029,-430.0,0.00017692,2]
[363756187,1748862638038,-640.0,0.00017692,2]
[363756188,1748862638048,-430.0,0.00017692,2]
[363756189,1748862638057,-1935.25,0.00017692,2]
[363756190,1748862638066,-529.27,0.00017692,2]
[363756191,1748862638076,-430.0,0.00017692,2]
[363756192,1748862638086,-785.27,0.00017692,2]
[363756193,1748862638095,-430.0,0.00017692,2]
[363756194,1748862638105,-430.0,0.00017692,2]
[363756195,1748862638114,-453.5,0.00017692,2]
[363756196,1748862638124,-430.0,0.00017692,2]
[363756197,1748862638133,-430.0,0.00017692,2]
[363756198,1748862638142,-623.12,0.00017692,2]
[363756199,1748862638151,-530.42,0.00017692,2]
[363756200,1748862638161,-214.94,0.00017692,2]
[363756201,1748862638171,-804.11,0.00017692,2]
[363756202,1748862638181,-430.0,0.00017692,2]
[363756203,1748862638191,-430.0,0.00017693,2]
[363756204,1748862638201,-2123.23272751,0.00017693,2]
[363756206,1748862638337,-522.0,0.00017693,2]
[363756207,1748862638354,-689.55456214,0.00017693,2]
[363756208,1748862638618,-430.0,0.00016596,2]
[363756209,1748862638628,-430.0,0.0001687,2]
[363756210,1748862638639,-430.0,0.00017144,2]
[363756211,1748862638648,-430.0,0.00017418,2]
[363756212,1748862638658,-430.0,0.00017692,2]
[363756213,1748862638667,-749.24271035,0.00017693,2]
[363756214,1748862638677,-728.04,0.00017693,2]
[363756215,1748862638686,-430.0,0.00017693,2]
[363756216,1748862638695,-167.31844685,0.00017722,2]
[363756217,1748862638705,-500.0,0.00017723,2]
[363756218,1748862638714,-1000.0,0.00017738,2]
[363756219,1748862638724,-505.162816,0.00017738,2]
[363756220,1748862638733,-1000.0,0.00017771,2]
[363756221,1748862638743,-568.0360368,0.000179,2]
[363756222,1748862638760,-3293.82448688,0.000179,2]
[363756223,1748862638770,-807.56,0.00017964,2]
[363756224,1748862638781,-430.0,0.00017964,2]
[363756225,1748862638790,-1621.71,0.00017964,2]
[363756226,1748862638799,-3115.92,0.00017964,2]
[363756227,1748862638810,-430.0,0.00017964,2]
[363756228,1748862638820,-1471.37,0.00017964,2]
[363756229,1748862638831,-2277.84,0.00017964,2]
[363756230,1748862638841,-1394.22,0.00017965,2]
[363756232,1748862638851,-573.88,0.00017965,2]
[363756234,1748862638861,-426.16496433,0.00017965,2]
[363756235,1748862638870,-430.0,0.00017965,2]
[363756236,1748862638883,-430.0,0.00017965,2]
[363756237,1748862638893,-720.83,0.00017965,2]
[363756238,1748862638904,-430.0,0.00017965,2]
[363756239,1748862638914,-1127.52,0.00017965,2]
[363756240,1748862638925,-430.0,0.00017965,2]
[363756241,1748862638934,-430.0,0.00017965,2]
[363756242,1748862638944,-430.0,0.00017966,2]
[363756243,1748862638954,-279.58166395,0.00017966,2]
[363756244,1748862638964,-430.0,0.00017966,2]
[363756245,1748862638974,-293.51702833,0.00017966,2]
[363756246,1748862638983,-430.0,0.00017966,2]
[363756247,1748862638992,-640.0,0.00017966,2]
[363756248,1748862639007,-430.0,0.00017966,2]
[363756249,1748862639018,-1935.25,0.00017966,2]
[363756250,1748862639028,-529.27,0.00017966,2]
[363756251,1748862639038,-430.0,0.00017966,2]
[363756252,1748862639047,-785.27,0.00017966,2]
[363756253,1748862639057,-528.11,0.00017966,2]
[363756254,1748862639066,-430.0,0.00017966,2]
[363756255,1748862639077,-430.0,0.00017966,2]
[363756256,1748862639087,-623.12,0.00017966,2]
[363756257,1748862639098,-530.42,0.00017966,2]
[363756258,1748862639109,-804.11,0.00017966,2]
[363756259,1748862639119,-430.0,0.00017966,2]
[363756260,1748862639128,-430.0,0.00017966,2]
[363756261,1748862639138,-430.0,0.00017967,2]
[363756262,1748862639147,-4084.03,0.00017967,2]
[363756263,1748862639157,-728.04,0.00017967,2]
[363756264,1748862639167,-151.0,0.00017995,2]
[363756265,1748862639176,-273.13548576,0.00017995,2]
[363756266,1748862639186,-207.4,0.00017995,2]
[363756267,1748862639196,-500.0,0.00017995,2]
[363756268,1748862639206,-500.0,0.00017995,2]